fUSD/lending_fUSD_20241223
["ID","MTS","AMOUNT","RATE_DAILY","PERIOD"]
[346465377,1734985878399,-1040.4,0.0001452,2]
[346465378,1734985878409,-1676.56,0.0001452,2]
[346465379,1734985878418,-500.0,0.0001452,2]
[346465380,1734985878429,-500.0,0.0001452,2]
[346465381,1734985878438,-500.0,0.0001452,2]
[346465382,1734985878448,-500.0,0.0001452,2]
[346465383,1734985878457,-2349.52,0.0001452,2]
[346465384,1734985878467,-1681.72,0.0001452,2]
[346465385,1734985878476,-1231.67,0.0001452,2]
[346465386,1734985878486,-596.42,0.0001452,2]
[346465387,1734985878495,-500.0,0.0001452,2]
[346465388,1734985878505,-500.0,0.0001452,2]
[346465389,1734985878514,-2136.05,0.0001452,2]
[346465390,1734985878524,-500.0,0.0001452,2]
[346465391,1734985878535,-878.77,0.0001452,2]
[346465392,1734985878544,-515.63,0.0001452,2]
[346465393,1734985878554,-1387.19,0.0001452,2]
[346465394,1734985878563,-500.0,0.0001452,2]
[346465395,1734985878573,-1277.14,0.0001452,2]
[346465396,1734985878583,-500.0,0.0001452,2]
[346465397,1734985878593,-500.0,0.0001452,2]
[346465398,1734985878602,-500.0,0.0001452,2]
[346465399,1734985878612,-942.01,0.0001452,2]
[346465400,1734985878621,-500.0,0.0001452,2]
[346465401,1734985878631,-2334.95,0.0001452,2]
[346465402,1734985878641,-500.0,0.0001452,2]
[346465403,1734985878651,-1037.6,0.0001452,2]
[346465404,1734985878660,-500.0,0.0001452,2]
[346465405,1734985878670,-1810.9,0.0001452,2]
[346465406,1734985878680,-500.0,0.0001452,2]
[346465407,1734985878690,-544.81,0.0001452,2]
[346465408,1734985878700,-871.58,0.0001452,2]
[346465409,1734985878710,-500.0,0.0001452,2]
[346465410,1734985878719,-1953.42,0.0001452,2]
[346465411,1734985878728,-500.0,0.0001452,2]
[346465412,1734985878738,-1704.95,0.0001452,2]
[346465413,1734985878747,-726.61,0.0001452,2]
[346465414,1734985878756,-500.0,0.0001452,2]
[346465415,1734985878766,-500.0,0.0001452,2]
[346465416,1734985878775,-1166.37,0.0001452,2]
[346465417,1734985878785,-500.0,0.0001452,2]
[346465418,1734985878795,-500.0,0.0001452,2]
[346465419,1734985878805,-1041.48,0.0001452,2]
[346465420,1734985878814,-1034.48,0.0001452,2]
[346465421,1734985878824,-718.3,0.0001452,2]
[346465422,1734985878833,-1117.21,0.0001452,2]
[346465423,1734985878844,-585.09340595,0.0001452,2]
[346465424,1734985878853,-542.14378136,0.0001452,2]
[346465425,1734985878863,-917.86,0.0001452,2]
[346465426,1734985878872,-500.0,0.0001452,2]
[346465427,1734985878882,-500.0,0.0001452,2]
[346465428,1734985878891,-936.45,0.0001452,2]
[346465429,1734985878901,-504.48994447,0.0001452,2]
[346465430,1734985878911,-500.0,0.0001452,2]
[346465431,1734985878921,-1338.94,0.0001452,2]
[346465432,1734985878934,-718.45,0.0001452,2]
[346465433,1734985878944,-500.0,0.0001452,2]
[346465434,1734985878954,-1013.25,0.0001452,2]
[346465435,1734985878964,-500.0,0.0001452,2]
[346465436,1734985878973,-500.0,0.0001452,2]
[346465437,1734985878982,-500.0,0.0001452,2]
[346465438,1734985878991,-1310.97,0.0001452,2]
[346465439,1734985879001,-500.0,0.0001452,2]
[346465440,1734985879010,-500.0,0.0001452,2]
[346465441,1734985879019,-797.38,0.0001452,2]
[346465442,1734985879028,-500.0,0.0001452,2]
[346465443,1734985879038,-500.0,0.0001452,2]
[346465444,1734985879047,-500.0,0.0001452,2]
[346465445,1734985879057,-500.0,0.0001452,2]
[346465446,1734985879066,-734.76,0.0001452,2]
[346465447,1734985879075,-500.0,0.0001452,2]
[346465448,1734985879084,-1542.48,0.0001452,2]
[346465449,1734985879094,-500.0,0.0001452,2]
[346465450,1734985879103,-1329.72,0.0001452,2]
[346465451,1734985879112,-506.30038498,0.0001452,2]
[346465452,1734985879122,-500.0,0.0001452,2]
[346465453,1734985879131,-831.36,0.0001452,2]
[346465454,1734985879140,-500.0,0.0001452,2]
[346465455,1734985879149,-500.0,0.0001452,2]
[346465456,1734985879159,-1274.05,0.0001452,2]
[346465457,1734985879167,-538.99,0.0001452,2]
[346465458,1734985879177,-669.59,0.0001452,2]
[346465459,1734985879187,-500.0,0.0001452,2]
[346465460,1734985879196,-500.0,0.0001452,2]
[346465461,1734985879206,-504.09,0.0001452,2]
[346465462,1734985879215,-500.0,0.0001452,2]
[346465463,1734985879225,-2346.91,0.0001452,2]
[346465464,1734985879235,-500.0,0.0001452,2]
[346465465,1734985879245,-500.0,0.0001452,2]
[346465466,1734985879255,-1552.36,0.0001452,2]
[346465467,1734985879265,-375.28546665,0.0001452,2]
[346465468,1734985879276,-511.74,0.0001452,2]
[346465469,1734985879286,-430.58,0.0001452,2]
[346465470,1734985879297,-500.0,0.0001452,2]
[346465471,1734985879308,-500.0,0.0001452,2]
[346465472,1734985879318,-518.25,0.0001452,2]
[346465473,1734985879328,-500.0,0.0001452,2]
[346465474,1734985879339,-1317.58,0.0001452,2]
[346465475,1734985879349,-500.0,0.0001452,2]
[346465476,1734985879359,-500.0,0.0001452,2]
[346465477,1734985879369,-500.0,0.0001452,2]
[346465478,1734985879379,-634.24788413,0.0001452,2]
[346465479,1734985879390,-500.0,0.0001452,2]
[346465480,1734985879400,-1186.04,0.0001452,2]
[346465481,1734985879410,-500.0,0.0001452,2]
[346465482,1734985879420,-500.0,0.0001452,2]
[346465483,1734985879431,-1380.25,0.0001452,2]
[346465484,1734985879441,-534.95,0.0001452,2]
[346465485,1734985879451,-1680.71,0.0001452,2]
[346465486,1734985879461,-500.0,0.0001452,2]
[346465487,1734985879471,-500.0,0.0001452,2]
[346465488,1734985879481,-500.0,0.0001452,2]
[346465489,1734985879491,-500.0,0.0001452,2]
[346465490,1734985879501,-500.0,0.0001452,2]
[346465491,1734985879511,-2218.43,0.0001452,2]
[346465492,1734985879521,-500.0,0.0001452,2]
[346465493,1734985879531,-500.0,0.0001452,2]
[346465494,1734985879541,-500.0,0.0001452,2]
[346465495,1734985879551,-825.1,0.0001452,2]
[346465496,1734985879561,-500.0,0.0001452,2]
[346465497,1734985879571,-1441.48,0.0001452,2]
[346465498,1734985879581,-711.38,0.0001452,2]
[346465499,1734985879591,-2489.45,0.0001452,2]
[346465500,1734985879601,-500.0,0.0001452,2]
[346465501,1734985879611,-1072.76,0.0001452,2]
[346465502,1734985879621,-1330.49,0.0001452,2]
[346465503,1734985879631,-1067.18,0.0001452,2]
[346465504,1734985879641,-500.0,0.0001452,2]
[346465505,1734985879651,-500.0,0.0001452,2]
[346465506,1734985879660,-319.68,0.0001452,2]
[346465507,1734985879670,-500.0,0.0001452,2]
[346465508,1734985879681,-2293.86,0.0001452,2]
[346465509,1734985879691,-1330.05,0.0001452,2]
[346465510,1734985879701,-960.34,0.0001452,2]
[346465511,1734985879711,-726.06,0.0001452,2]
[346465512,1734985879721,-1198.05,0.0001452,2]
[346465513,1734985879731,-500.0,0.0001452,2]
[346465514,1734985879741,-676.2,0.0001452,2]
[346465515,1734985879750,-976.17,0.0001452,2]
[346465516,1734985879760,-500.0,0.0001452,2]
[346465517,1734985879770,-495.47015972,0.0001452,2]
[346465518,1734985879780,-572.9,0.0001452,2]
[346465519,1734985879790,-2358.02,0.0001452,2]
[346465520,1734985879799,-1767.73,0.0001452,2]
[346465521,1734985879809,-1610.47,0.0001452,2]
[346465522,1734985879819,-999.64,0.0001452,2]
[346465523,1734985879829,-1406.6,0.0001452,2]
[346465524,1734985879840,-1381.12,0.0001452,2]
[346465525,1734985879849,-503.20209987,0.0001452,2]
[346465526,1734985879859,-500.0,0.0001452,2]
[346465527,1734985879868,-500.0,0.0001452,2]
[346465528,1734985879878,-2739.52,0.0001452,2]
[346465529,1734985879888,-500.0,0.0001452,2]
[346465530,1734985879898,-500.0,0.0001452,2]
[346465531,1734985879908,-1819.83,0.0001452,2]
[346465532,1734985879918,-500.0,0.0001452,2]
[346465533,1734985879931,-500.0,0.0001452,2]
[346465534,1734985879941,-670.54,0.0001452,2]
[346465535,1734985879951,-500.0,0.0001452,2]
[346465536,1734985879961,-500.0,0.0001452,2]
[346465537,1734985879971,-500.0,0.0001452,2]
[346465538,1734985879981,-1116.26,0.0001452,2]
[346465539,1734985879991,-500.0,0.0001452,2]
[346465540,1734985880001,-500.0,0.0001452,2]
[346465541,1734985880011,-1104.4,0.0001452,2]
[346465542,1734985880020,-500.0,0.0001452,2]
[346465543,1734985880030,-500.0,0.0001452,2]
[346465544,1734985880040,-1127.54,0.0001452,2]
[346465545,1734985880049,-161.40310338,0.0001452,2]
[346465546,1734985880059,-500.0,0.0001452,2]
[346465547,1734985880069,-713.56,0.0001452,2]
[346465548,1734985880079,-718.79,0.0001452,2]
[346465549,1734985880088,-500.0,0.0001452,2]
[346465550,1734985880098,-1324.85,0.0001452,2]
[346465551,1734985880108,-11616.38,0.0001452,2]
[346465552,1734985880118,-500.0,0.0001452,2]
[346465553,1734985880128,-546.66,0.0001452,2]
[346465554,1734985880138,-889.67,0.0001452,2]
[346465555,1734985880148,-552.31,0.0001452,2]
[346465556,1734985880158,-2585.74,0.0001452,2]
[346465557,1734985880167,-500.0,0.0001452,2]
[346465558,1734985880178,-500.0,0.0001452,2]
[346465559,1734985880187,-1564.45,0.0001452,2]
[346465560,1734985880197,-2132.91,0.0001452,2]
[346465561,1734985880207,-1910.4,0.0001452,2]
[346465562,1734985880217,-500.0,0.0001452,2]
[346465563,1734985880228,-500.0,0.0001452,2]
[346465564,1734985880238,-500.0,0.0001452,2]
[346465565,1734985880247,-500.0,0.0001452,2]
[346465566,1734985880257,-500.0,0.0001452,2]
[346465567,1734985880267,-676.74,0.0001452,2]
[346465568,1734985880276,-1052.83,0.0001452,2]
[346465569,1734985880286,-1540.54,0.0001452,2]
[346465570,1734985880297,-3961.8,0.0001452,2]
[346465571,1734985880307,-500.0,0.0001452,2]
[346465572,1734985880316,-502.39369936,0.0001452,2]
[346465573,1734985880326,-906.99,0.0001452,2]
[346465574,1734985880336,-1220.26,0.0001452,2]
[346465575,1734985880346,-500.0,0.0001452,2]
[346465576,1734985880355,-757.77,0.0001452,2]
[346465577,1734985880365,-608.2,0.0001452,2]
[346465578,1734985880375,-500.0,0.0001452,2]
[346465579,1734985880384,-730.93,0.0001452,2]
[346465580,1734985880395,-642.48,0.0001452,2]
[346465581,1734985880405,-500.0,0.0001452,2]
[346465582,1734985880415,-1880.32,0.0001452,2]
[346465583,1734985880424,-500.0,0.0001452,2]
[346465584,1734985880435,-500.0,0.0001452,2]
[346465585,1734985880445,-500.0,0.0001452,2]
[346465586,1734985880455,-593.05,0.0001452,2]
[346465587,1734985880464,-1323.67,0.0001452,2]
[346465588,1734985880474,-731.37,0.0001452,2]
[346465589,1734985880484,-500.0,0.0001452,2]
[346465590,1734985880493,-1229.23,0.0001452,2]
[346465591,1734985880503,-1128.51,0.0001452,2]
[346465592,1734985880512,-500.0,0.0001452,2]
[346465593,1734985880522,-1556.25,0.0001452,2]
[346465594,1734985880532,-1821.81,0.0001452,2]
[346465595,1734985880542,-500.0,0.0001452,2]
[346465596,1734985880552,-2511.25,0.0001452,2]
[346465597,1734985880561,-500.0,0.0001452,2]
[346465598,1734985880571,-500.0,0.0001452,2]
[346465599,1734985880581,-500.0,0.0001452,2]
[346465600,1734985880590,-500.0,0.0001452,2]
[346465601,1734985880600,-500.0,0.0001452,2]
[346465602,1734985880614,-500.0,0.0001452,2]
[346465603,1734985880624,-1286.37,0.0001452,2]
[346465604,1734985880634,-4562.33,0.0001452,2]
[346465605,1734985880643,-1062.83,0.0001452,2]
[346465606,1734985880654,-1153.14,0.0001452,2]
[346465607,1734985880664,-641.53,0.0001452,2]
[346465608,1734985880674,-500.0,0.0001452,2]
[346465609,1734985880685,-2535.38,0.0001452,2]
[346465610,1734985880695,-500.0,0.0001452,2]
[346465611,1734985880705,-559.44,0.0001452,2]
[346465612,1734985880715,-2844.22,0.0001452,2]
[346465613,1734985880725,-500.0,0.0001452,2]
[346465614,1734985880735,-1175.89,0.0001452,2]
[346465615,1734985880745,-659.94,0.0001452,2]
[346465616,1734985880755,-500.0,0.0001452,2]
[346465617,1734985880765,-1425.63,0.0001452,2]
[346465618,1734985880776,-1269.21,0.0001452,2]
[346465619,1734985880786,-3167.53,0.0001452,2]
[346465620,1734985880796,-500.0,0.0001452,2]
[346465621,1734985880806,-500.0,0.0001452,2]
[346465622,1734985880816,-3442.76,0.0001452,2]
[346465623,1734985880826,-1385.92,0.0001452,2]
[346465624,1734985880836,-3727.64,0.0001452,2]
[346465625,1734985880846,-500.0,0.0001452,2]
[346465626,1734985880856,-1459.47,0.0001452,2]
[346465627,1734985880866,-555.79,0.0001452,2]
[346465628,1734985880876,-533.73,0.0001452,2]
[346465629,1734985880887,-997.76,0.0001452,2]
[346465630,1734985880896,-500.0,0.0001452,2]
[346465631,1734985880907,-8524.68,0.0001452,2]
[346465632,1734985880916,-1272.23,0.0001452,2]
[346465633,1734985880931,-2285.32,0.0001452,2]
[346465634,1734985880941,-981.91,0.0001452,2]
[346465635,1734985880951,-2978.93,0.0001452,2]
[346465636,1734985880962,-500.0,0.0001452,2]
[346465637,1734985880972,-9546.61,0.0001452,2]
[346465638,1734985880981,-2228.43,0.0001452,2]
[346465639,1734985880992,-2084.77,0.0001452,2]
[346465640,1734985881002,-1275.35,0.0001452,2]
[346465641,1734985881012,-701.29,0.0001452,2]
[346465642,1734985881022,-500.0,0.0001452,2]
[346465643,1734985881032,-500.0,0.0001452,2]
[346465644,1734985881042,-8504.12,0.0001452,2]
[346465645,1734985881052,-2631.63,0.0001452,2]
[346465646,1734985881061,-5876.43,0.0001452,2]
[346465647,1734985881071,-500.0,0.0001452,2]
[346465648,1734985881081,-714.851638,0.0001452,2]
[346465649,1734985881091,-1269.09,0.0001452,2]
[346465650,1734985881101,-500.0,0.0001452,2]
[346465651,1734985881110,-1403.77,0.0001452,2]
[346465652,1734985881120,-1409.70530805,0.0001452,2]
[346465653,1734985881554,-5589.34469195,0.0001452,2]
[346465654,1734985881564,-896.477441,0.0001452,2]
[346465655,1734985881574,-567.05,0.0001452,2]
[346465656,1734985881583,-500.0,0.0001452,2]
[346465657,1734985881593,-500.0,0.0001452,2]
[346465658,1734985881602,-151.0,0.0001452,2]
[346465659,1734985881611,-978.25,0.0001452,2]
[346465660,1734985881621,-878.42,0.0001452,2]
[346465661,1734985881630,-810.98,0.0001452,2]
[346465662,1734985881639,-153.09084268,0.0001452,2]
[346465663,1734985881648,-4971.32,0.0001452,2]
[346465664,1734985881657,-15609.61,0.0001452,2]
[346465665,1734985881667,-2082.07,0.0001452,2]
[346465666,1734985881676,-1810.82,0.0001452,2]
[346465667,1734985881686,-500.0,0.0001452,2]
[346465668,1734985881696,-500.0,0.0001452,2]
[346465669,1734985881706,-544.09,0.0001452,2]
[346465670,1734985881715,-500.0,0.0001452,2]
[346465671,1734985881724,-21485.8,0.0001452,2]
[346465672,1734985881734,-2194.12,0.0001452,2]
[346465673,1734985881743,-537.09,0.0001452,2]
[346465674,1734985881752,-1307.78,0.0001452,2]
[346465675,1734985881761,-608.254172,0.0001452,2]
[346465676,1734985881771,-500.0,0.0001452,2]
[346465677,1734985881780,-648.7,0.0001452,2]
[346465678,1734985881789,-500.0,0.0001452,2]
[346465679,1734985881799,-830.494148,0.0001452,2]
[346465680,1734985881808,-500.0,0.0001452,2]
[346465681,1734985881817,-500.0,0.0001452,2]
[346465682,1734985881826,-792.62,0.0001452,2]
[346465683,1734985881836,-500.0,0.0001452,2]
[346465684,1734985881845,-500.0,0.0001452,2]
[346465685,1734985881854,-695.34,0.0001452,2]
[346465686,1734985881863,-2306.63,0.0001452,2]
[346465687,1734985881873,-500.0,0.0001452,2]
[346465688,1734985881882,-1338.41,0.0001452,2]
[346465689,1734985881891,-134.03552002,0.0001452,2]
[346465690,1734985882560,-420.03400767,0.00013646,2]
[346465691,1734985882571,-500.0,0.00013698,2]
[346465692,1734985882580,-500.0,0.00013698,2]
[346465693,1734985882592,-500.0,0.00013698,2]
[346465694,1734985882602,-2885.51599233,0.00014329,2]
[346465695,1734985882615,-45908.69686074,0.00014329,2]
[346465696,1734985882625,-976.37447998,0.0001452,2]
[346465697,1734985882634,-156.182821,0.0001452,2]
[346465698,1734985882644,-2259.15,0.0001452,2]
[346465699,1734985882654,-500.0,0.0001452,2]
[346465700,1734985882663,-2704.02,0.0001452,2]
[346465701,1734985882674,-500.0,0.0001452,2]
[346465702,1734985882686,-8082.49,0.0001452,2]
[346465703,1734985882695,-500.0,0.0001452,2]
[346465704,1734985882705,-1130.4,0.0001452,2]
[346465705,1734985882714,-505.91591175,0.0001452,2]
[346465706,1734985882724,-4959.77,0.0001452,2]
[346465707,1734985882733,-500.0,0.0001452,2]
[346465708,1734985882742,-736.657144,0.0001452,2]
[346465709,1734985882751,-505.532594,0.0001452,2]
[346465710,1734985882760,-957.86,0.0001452,2]
[346465711,1734985882770,-1409.87,0.0001452,2]
[346465712,1734985882779,-1185.79,0.0001452,2]
[346465713,1734985882788,-500.0,0.0001452,2]
[346465714,1734985882797,-5418.44,0.0001452,2]
[346465715,1734985882806,-909.88,0.0001452,2]
[346465716,1734985882815,-500.0,0.0001452,2]
[346465717,1734985882824,-500.0,0.0001452,2]
[346465718,1734985882833,-1045.5,0.0001452,2]
[346465719,1734985882843,-4556.54,0.0001452,2]
[346465720,1734985882852,-881.96,0.0001452,2]
[346465721,1734985882861,-500.0,0.0001452,2]
[346465722,1734985882870,-500.0,0.0001452,2]
[346465723,1734985882879,-500.0,0.0001452,2]
[346465724,1734985882888,-500.0,0.0001452,2]
[346465725,1734985882898,-500.0,0.0001452,2]
[346465726,1734985882907,-151.0,0.0001452,2]
[346465727,1734985882916,-25800.67,0.0001452,2]
[346465728,1734985882931,-1968.17,0.0001452,2]
[346465729,1734985882941,-500.0,0.0001452,2]
[346465730,1734985882950,-500.0,0.0001452,2]
[346465731,1734985882960,-151.0,0.0001452,2]
[346465732,1734985882970,-687.21,0.0001452,2]
[346465733,1734985882979,-500.0,0.0001452,2]
[346465734,1734985882988,-3288.38,0.0001452,2]
[346465735,1734985882998,-500.0,0.0001452,2]
[346465736,1734985883008,-1811.4,0.0001452,2]
[346465737,1734985883019,-416.862212,0.0001452,2]
[346465738,1734985883028,-500.0,0.0001452,2]
[346465739,1734985883037,-1397.62,0.0001452,2]
[346465740,1734985883047,-392.09031825,0.0001452,2]
[346465741,1734985883056,-1421.74,0.0001452,2]
[346465742,1734985883065,-638.509271,0.0001452,2]
[346465743,1734985883074,-1226.06,0.0001452,2]
[346465744,1734985883083,-500.0,0.0001452,2]
[346465745,1734985883093,-2054.5,0.0001452,2]
[346465746,1734985883103,-500.0,0.0001452,2]
[346465747,1734985883112,-1202.02,0.0001452,2]
[346465748,1734985883122,-585.71122634,0.0001452,2]
[346465749,1734985883132,-500.0,0.0001452,2]
[346465750,1734985883141,-857.55,0.0001452,2]
[346465751,1734985883151,-997.04,0.0001452,2]
[346465752,1734985883160,-500.0,0.0001452,2]
[346465753,1734985883170,-4568.68,0.0001452,2]
[346465754,1734985883181,-6837.63,0.0001452,2]
[346465755,1734985883191,-1006.94,0.0001452,2]
[346465756,1734985883201,-500.0,0.0001452,2]
[346465757,1734985883210,-3003.94,0.0001452,2]
[346465758,1734985883220,-3832.76,0.0001452,2]
[346465759,1734985883229,-500.0,0.0001452,2]
[346465760,1734985883238,-500.0,0.0001452,2]
[346465761,1734985883248,-1063.28,0.0001452,2]
[346465762,1734985883257,-500.0,0.0001452,2]
[346465763,1734985883266,-151.0,0.0001452,2]
[346465764,1734985883276,-2507.56,0.0001452,2]
[346465765,1734985883286,-8648.19,0.0001452,2]
[346465766,1734985883296,-500.0,0.0001452,2]
[346465767,1734985883306,-5405.85,0.0001452,2]
[346465768,1734985883315,-960.03,0.0001452,2]
[346465769,1734985883325,-1187.23,0.0001452,2]
[346465770,1734985883335,-500.0,0.0001452,2]
[346465771,1734985883345,-2940.51,0.0001452,2]
[346465772,1734985883355,-1048.41,0.0001452,2]
[346465773,1734985883365,-840.39,0.0001452,2]
[346465774,1734985883375,-1068.6,0.0001452,2]
[346465775,1734985883385,-1993.74,0.0001452,2]
[346465776,1734985883395,-3561.12,0.0001452,2]
[346465777,1734985883404,-546.61,0.0001452,2]
[346465778,1734985883414,-500.0,0.0001452,2]
[346465779,1734985883424,-500.0,0.0001452,2]
[346465780,1734985883435,-3274.29,0.0001452,2]
[346465781,1734985883445,-1338.38,0.0001452,2]
[346465782,1734985883455,-783.78,0.0001452,2]
[346465783,1734985883464,-500.0,0.0001452,2]
[346465784,1734985883474,-151.0,0.0001452,2]
[346465785,1734985883483,-6361.67,0.0001452,2]
[346465786,1734985883493,-2499.95,0.0001452,2]
[346465787,1734985883502,-506.29008162,0.0001452,2]
[346465788,1734985883511,-1272.9,0.0001452,2]
[346465789,1734985883521,-584.79,0.0001452,2]
[346465790,1734985883530,-1264.02,0.0001452,2]
[346465791,1734985883539,-602.61,0.0001452,2]
[346465792,1734985883550,-2583.28,0.0001452,2]
[346465793,1734985883559,-3548.89,0.0001452,2]
[346465794,1734985883569,-20926.66,0.0001452,2]
[346465795,1734985883578,-1616.84,0.0001452,2]
[346465796,1734985883588,-345.39155,0.0001452,2]
[346465797,1734985883598,-5036.21,0.0001452,2]
[346465798,1734985883607,-2477.09,0.0001452,2]
[346465799,1734985883616,-151.0,0.0001452,2]
[346465800,1734985883625,-1308.35,0.0001452,2]
[346465801,1734985883635,-3947.04,0.0001452,2]
[346465802,1734985883645,-500.0,0.0001452,2]
[346465803,1734985883654,-500.0,0.0001452,2]
[346465804,1734985883663,-1083.41,0.0001452,2]
[346465805,1734985883759,-1480.03,0.0001452,2]
[346465806,1734985883768,-2255.81,0.0001452,2]
[346465807,1734985883778,-151.0,0.0001452,2]
[346465808,1734985883787,-2607.12,0.0001452,2]
[346465809,1734985883796,-5040.82,0.0001452,2]
[346465810,1734985883805,-500.0,0.0001452,2]
[346465811,1734985883814,-543.495431,0.0001452,2]
[346465812,1734985883823,-1247.57,0.0001452,2]
[346465813,1734985883831,-500.0,0.0001452,2]
[346465814,1734985883841,-630.85,0.0001452,2]
[346465815,1734985883850,-500.0,0.0001452,2]
[346465816,1734985883859,-500.0,0.0001452,2]
[346465817,1734985883867,-2068.91,0.0001452,2]
[346465818,1734985883876,-1429.01,0.0001452,2]
[346465819,1734985883886,-1226.76,0.0001452,2]
[346465820,1734985883895,-2452.75,0.0001452,2]
[346465821,1734985883904,-1241.01,0.0001452,2]
[346465822,1734985883913,-506.4,0.0001452,2]
[346465823,1734985883923,-554.46,0.0001452,2]
[346465824,1734985883936,-18700.62,0.0001452,2]
[346465825,1734985883946,-501.17,0.0001452,2]
[346465826,1734985883955,-3300.69,0.0001452,2]
[346465827,1734985883965,-350.820655,0.0001452,2]
[346465828,1734985883974,-500.0,0.0001452,2]
[346465829,1734985883983,-6119.76,0.0001452,2]
[346465830,1734985883993,-3913.42,0.0001452,2]
[346465831,1734985884002,-500.0,0.0001452,2]
[346465832,1734985884012,-500.0,0.0001452,2]
[346465833,1734985884021,-490.379018,0.0001452,2]
[346465834,1734985884030,-1567.98,0.0001452,2]
[346465835,1734985884039,-6444.03,0.0001452,2]
[346465836,1734985884048,-1453.39,0.0001452,2]
[346465837,1734985884057,-500.0,0.0001452,2]
[346465838,1734985884066,-3959.58,0.0001452,2]
[346465839,1734985884076,-1603.61,0.0001452,2]
[346465840,1734985884086,-1456.46,0.0001452,2]
[346465841,1734985884095,-649.54,0.0001452,2]
[346465842,1734985884103,-1305.37,0.0001452,2]
[346465843,1734985884113,-3798.82,0.0001452,2]
[346465844,1734985884122,-4147.05,0.0001452,2]
[346465845,1734985884131,-514.33,0.0001452,2]
[346465846,1734985884141,-500.0,0.0001452,2]
[346465847,1734985884150,-3993.59,0.0001452,2]
[346465848,1734985884159,-3821.57,0.0001452,2]
[346465849,1734985884168,-1842.07,0.0001452,2]
[346465850,1734985884177,-1272.09,0.0001452,2]
[346465851,1734985884187,-4205.8,0.0001452,2]
[346465852,1734985884196,-9580.74,0.0001452,2]
[346465853,1734985884205,-452.76781,0.0001452,2]
[346465854,1734985884214,-990.12,0.0001452,2]
[346465855,1734985884224,-3273.83,0.0001452,2]
[346465856,1734985884233,-500.0,0.0001452,2]
[346465857,1734985884242,-500.0,0.0001452,2]
[346465858,1734985884251,-3939.69,0.0001452,2]
[346465859,1734985884261,-6970.0,0.0001452,2]
[346465860,1734985884270,-513.29459,0.0001452,2]
[346465861,1734985884280,-5297.22,0.0001452,2]
[346465862,1734985884290,-507.24,0.0001452,2]
[346465863,1734985884299,-2342.86,0.0001452,2]
[346465864,1734985884309,-3419.02,0.0001452,2]
[346465865,1734985884319,-880.11,0.0001452,2]
[346465866,1734985884327,-4406.32,0.0001452,2]
[346465867,1734985884336,-500.0,0.0001452,2]
[346465868,1734985884346,-500.0,0.0001452,2]
[346465869,1734985884356,-1687.17,0.0001452,2]
[346465870,1734985884365,-7467.93,0.0001452,2]
[346465871,1734985884374,-500.0,0.0001452,2]
[346465872,1734985884383,-1563.38,0.0001452,2]
[346465873,1734985884392,-560.36,0.0001452,2]
[346465874,1734985884401,-2438.69,0.0001452,2]
[346465875,1734985884410,-3781.54,0.0001452,2]
[346465876,1734985884419,-3631.24,0.0001452,2]